fUST/lending_fUST_20250727
["ID","MTS","AMOUNT","RATE_DAILY","PERIOD"]
[375185204,1753581055861,-460.0,0.0002005,2]
[375185206,1753581055870,-460.0,0.0002005,2]
[375185208,1753581055880,-460.0,0.0002005,2]
[375185210,1753581055888,-460.0,0.0002005,2]
[375185212,1753581055898,-460.0,0.0002005,2]
[375185214,1753581055907,-460.0,0.0002005,2]
[375185216,1753581055916,-463.58819714,0.0002005,2]
[375185218,1753581055926,-460.0,0.0002005,2]
[375185220,1753581055935,-462.72380966,0.0002005,2]
[375185222,1753581055944,-464.20404737,0.0002005,2]
[375185224,1753581055953,-460.0,0.0002005,2]
[375185226,1753581055963,-462.13896883,0.0002005,2]
[375185228,1753581055973,-460.0,0.0002005,2]
[375185230,1753581055983,-460.0,0.0002005,2]
[375185232,1753581055993,-466.80440328,0.0002005,2]
[375185234,1753581056002,-460.0,0.0002005,2]
[375185236,1753581056012,-460.0,0.0002005,2]
[375185238,1753581056022,-460.0,0.0002005,2]
[375185240,1753581056032,-460.0,0.0002005,2]
[375185242,1753581056042,-460.0,0.0002005,2]
[375185244,1753581056052,-460.0,0.0002005,2]
[375185246,1753581056062,-460.0,0.0002005,2]
[375185248,1753581056072,-460.0,0.0002005,2]
[375185250,1753581056082,-464.64833957,0.0002005,2]
[375185252,1753581056093,-466.53206115,0.0002005,2]
[375185254,1753581056104,-460.0,0.0002005,2]
[375185256,1753581056114,-460.0,0.0002005,2]
[375185258,1753581056123,-460.0,0.0002005,2]
[375185260,1753581056133,-460.0,0.0002005,2]
[375185262,1753581056143,-460.0,0.0002005,2]
[375185264,1753581056153,-460.0,0.0002005,2]
[375185266,1753581056163,-460.0,0.0002005,2]
[375185268,1753581056172,-460.0,0.0002005,2]
[375185270,1753581056182,-463.62093836,0.0002005,2]
[375185272,1753581056192,-460.0,0.0002005,2]
[375185274,1753581056202,-460.0,0.0002005,2]
[375185276,1753581056211,-460.0,0.0002005,2]
[375185278,1753581056221,-460.0,0.0002005,2]
[375185280,1753581056231,-460.0,0.0002005,2]
[375185282,1753581056241,-486.57,0.0002005,2]
[375185284,1753581056251,-460.0,0.0002005,2]
[375185286,1753581056261,-460.0,0.0002005,2]
[375185288,1753581056271,-460.0,0.0002005,2]
[375185290,1753581056280,-460.0,0.0002005,2]
[375185292,1753581056290,-463.44842661,0.0002005,2]
[375185294,1753581056299,-465.1891006,0.0002005,2]
[375185296,1753581056309,-462.4004504,0.0002005,2]
[375185298,1753581056318,-460.0,0.0002005,2]
[375185300,1753581056328,-460.0,0.0002005,2]
[375185302,1753581056337,-462.25648449,0.0002005,2]
[375185304,1753581056347,-460.0,0.0002005,2]
[375185306,1753581056357,-460.0,0.0002005,2]
[375185308,1753581056367,-460.0,0.0002005,2]
[375185310,1753581056377,-460.0,0.0002005,2]
[375185312,1753581056387,-460.0,0.0002005,2]
[375185314,1753581056397,-460.0,0.0002005,2]
[375185316,1753581056407,-460.0,0.0002005,2]
[375185318,1753581056421,-460.0,0.0002005,2]
[375185320,1753581056431,-460.0,0.0002005,2]
[375185322,1753581056440,-460.0,0.0002005,2]
[375185324,1753581056450,-463.5,0.0002005,2]
[375185326,1753581056462,-460.0,0.0002005,2]
[375185338,1753581056562,-460.0,0.0002005,2]
[375185340,1753581056574,-460.0,0.0002005,2]
[375185342,1753581056583,-460.0,0.0002005,2]
[375185344,1753581056593,-460.0,0.0002005,2]
[375185345,1753581056606,-460.0,0.0002005,2]
[375185348,1753581056616,-460.0,0.0002005,2]
[375185349,1753581056626,-460.0,0.0002005,2]
[375185351,1753581056636,-497.39975557,0.0002005,2]
[375185354,1753581056646,-460.0,0.0002005,2]
[375185356,1753581056656,-460.0,0.0002005,2]
[375185358,1753581056666,-482.29963128,0.0002005,2]
[375185359,1753581056676,-460.0,0.0002005,2]
[375185362,1753581056685,-460.0,0.0002005,2]
[375185363,1753581056695,-460.0,0.0002005,2]
[375185365,1753581056705,-460.0,0.0002005,2]
[375185368,1753581056715,-460.0,0.0002005,2]
[375185369,1753581056725,-460.0,0.0002005,2]
[375185371,1753581056734,-460.0,0.0002005,2]
[375185373,1753581056745,-460.0,0.0002005,2]
[375185375,1753581056755,-460.0,0.0002005,2]
[375185377,1753581056765,-460.0,0.0002005,2]
[375185379,1753581056775,-460.0,0.0002005,2]
[375185382,1753581056786,-460.0,0.0002005,2]
[375185384,1753581056796,-535.18,0.0002005,2]
[375185385,1753581056806,-512.88,0.0002005,2]
[375185387,1753581056816,-460.0,0.0002005,2]
[375185389,1753581056825,-460.0,0.0002005,2]
[375185391,1753581056835,-463.4094581,0.0002005,2]
[375185393,1753581056847,-460.0,0.0002005,2]
[375185396,1753581056856,-460.0,0.0002005,2]
[375185397,1753581056866,-460.0,0.0002005,2]
[375185399,1753581056876,-460.0,0.0002005,2]
[375185401,1753581056886,-460.0,0.0002005,2]
[375185403,1753581056896,-464.62404075,0.0002005,2]
[375185406,1753581056907,-460.0,0.0002005,2]
[375185407,1753581056917,-460.0,0.0002005,2]
[375185409,1753581056927,-460.0,0.0002005,2]
[375185412,1753581056937,-460.0,0.0002005,2]
[375185414,1753581056947,-1072.02,0.0002005,2]
[375185416,1753581056958,-460.0,0.0002005,2]
[375185417,1753581056968,-465.27497246,0.0002005,2]
[375185419,1753581056978,-460.0,0.0002005,2]
[375185422,1753581056988,-460.0,0.0002005,2]
[375185424,1753581056997,-460.0,0.0002005,2]
[375185426,1753581057007,-464.10826767,0.0002005,2]
[375185427,1753581057017,-460.0,0.0002005,2]
[375185429,1753581057027,-462.51771978,0.0002005,2]
[375185431,1753581057037,-460.0,0.0002005,2]
[375185433,1753581057046,-463.49689829,0.0002005,2]
[375185435,1753581057056,-460.0,0.0002005,2]
[375185437,1753581057066,-460.0,0.0002005,2]
[375185440,1753581057076,-460.0,0.0002005,2]
[375185442,1753581057086,-2025.96,0.0002005,2]
[375185443,1753581057095,-460.0,0.0002005,2]
[375185446,1753581057105,-460.0,0.0002005,2]
[375185448,1753581057116,-460.0,0.0002005,2]
[375185450,1753581057126,-460.0,0.0002005,2]
[375185451,1753581057135,-1006.77,0.0002005,2]
[375185454,1753581057145,-460.0,0.0002005,2]
[375185456,1753581057155,-460.0,0.0002005,2]
[375185458,1753581057164,-461.65432692,0.0002005,2]
[375185459,1753581057174,-460.0,0.0002005,2]
[375185461,1753581057184,-460.0,0.0002005,2]
[375185464,1753581057194,-460.0,0.0002005,2]
[375185466,1753581057204,-460.0,0.0002005,2]
[375185468,1753581057213,-460.0,0.0002005,2]
[375185470,1753581057224,-460.0,0.0002005,2]
[375185471,1753581057233,-674.58,0.0002005,2]
[375185473,1753581057243,-756.57,0.0002005,2]
[375185476,1753581057253,-463.45208699,0.0002005,2]
[375185478,1753581057263,-460.0,0.0002005,2]
[375185480,1753581057273,-460.0,0.0002005,2]
[375185481,1753581057282,-460.0,0.0002005,2]
[375185484,1753581057295,-466.54998195,0.0002005,2]
[375185485,1753581057305,-460.0,0.0002005,2]
[375185487,1753581057315,-471.46,0.0002005,2]
[375185490,1753581057326,-460.0,0.0002005,2]
[375185492,1753581057337,-460.0,0.0002005,2]
[375185494,1753581057349,-460.0,0.0002005,2]
[375185496,1753581057360,-1620.18,0.0002005,2]
[375185498,1753581057369,-460.0,0.0002005,2]
[375185499,1753581057380,-460.0,0.0002005,2]
[375185502,1753581057392,-460.0,0.0002005,2]
[375185503,1753581057402,-460.0,0.0002005,2]
[375185505,1753581057412,-460.0,0.0002005,2]
[375185507,1753581057426,-460.0,0.0002005,2]
[375185509,1753581057436,-460.0,0.0002005,2]
[375185512,1753581057446,-460.0,0.0002005,2]
[375185513,1753581057455,-465.85004244,0.0002005,2]
[375185515,1753581057466,-460.0,0.0002005,2]
[375185517,1753581057476,-460.0,0.0002005,2]
[375185519,1753581057486,-1840.08,0.0002005,2]
[375185521,1753581057498,-460.0,0.0002005,2]
[375185523,1753581057508,-460.0,0.0002005,2]
[375185525,1753581057518,-460.0,0.0002005,2]
[375185527,1753581057528,-460.0,0.0002005,2]
[375185529,1753581057539,-460.0,0.0002005,2]
[375185532,1753581057549,-460.0,0.0002005,2]
[375185533,1753581057560,-464.54296776,0.0002005,2]
[375185536,1753581057571,-460.0,0.0002005,2]
[375185538,1753581057582,-460.0,0.0002005,2]
[375185540,1753581057592,-460.0,0.0002005,2]
[375185542,1753581057602,-460.0,0.0002005,2]
[375185544,1753581057612,-460.0,0.0002005,2]
[375185545,1753581057622,-151.660534,0.0002005,2]
[375185547,1753581057632,-1601.61,0.0002005,2]
[375185550,1753581057642,-460.0,0.0002005,2]
[375185552,1753581057652,-460.0,0.0002005,2]
[375185553,1753581057663,-151.0,0.0002005,2]
[375185556,1753581057673,-153.915522,0.0002005,2]
[375185557,1753581057684,-460.0,0.0002005,2]
[375185559,1753581057694,-463.05724323,0.0002005,2]
[375185561,1753581057703,-157.964737,0.0002005,2]
[375185563,1753581057713,-460.0,0.0002005,2]
[375185566,1753581057723,-460.0,0.0002005,2]
[375185568,1753581057732,-460.0,0.0002005,2]
[375185569,1753581057741,-460.0,0.0002005,2]
[375185572,1753581057751,-460.0,0.0002005,2]
[375185574,1753581057761,-460.0,0.0002005,2]
[375185576,1753581057770,-663.29,0.0002005,2]
[375185577,1753581057779,-460.0,0.0002005,2]
[375185579,1753581057789,-522.23,0.0002005,2]
[375185581,1753581057799,-151.0,0.0002005,2]
[375185583,1753581057809,-460.0,0.0002005,2]
[375185586,1753581057819,-151.0,0.0002005,2]
[375185588,1753581057829,-1432.36,0.0002005,2]
[375185590,1753581057839,-460.0,0.0002005,2]
[375185592,1753581057849,-460.0,0.0002005,2]
[375185593,1753581057859,-460.0,0.0002005,2]
[375185595,1753581057868,-460.0,0.0002005,2]
[375185598,1753581057878,-153.113207,0.0002005,2]
[375185600,1753581057889,-460.0,0.0002005,2]
[375185601,1753581057898,-151.0,0.0002005,2]
[375185603,1753581057909,-462.79791518,0.0002005,2]
[375185606,1753581057920,-460.0,0.0002005,2]
[375185608,1753581057930,-460.0,0.0002005,2]
[375185610,1753581057940,-507.52921316,0.0002005,2]
[375185611,1753581057951,-460.0,0.0002005,2]
[375185613,1753581057961,-460.0,0.0002005,2]
[375185615,1753581057971,-5218.69,0.0002005,2]
[375185618,1753581057981,-460.0,0.0002005,2]
[375185619,1753581057991,-663.2,0.0002005,2]
[375185621,1753581058000,-460.0,0.0002005,2]
[375185623,1753581058009,-460.0,0.0002005,2]
[375185625,1753581058019,-460.0,0.0002005,2]
[375185627,1753581058028,-460.0,0.0002005,2]
[375185629,1753581058038,-460.0,0.0002005,2]
[375185631,1753581058047,-460.0,0.0002005,2]
[375185633,1753581058057,-460.0,0.0002005,2]
[375185635,1753581058067,-507.63,0.0002005,2]
[375185637,1753581058076,-460.0,0.0002005,2]
[375185639,1753581058086,-178.181668,0.0002005,2]
[375185641,1753581058097,-460.0,0.0002005,2]
[375185643,1753581058112,-682.33,0.0002005,2]
[375185645,1753581058121,-460.0,0.0002005,2]
[375185647,1753581058132,-460.0,0.0002005,2]
[375185649,1753581058142,-460.0,0.0002005,2]
[375185651,1753581058151,-463.01175002,0.0002005,2]
[375185653,1753581058161,-460.0,0.00020052,2]
[375185655,1753581058170,-306.18990403,0.00020053,2]
[375185657,1753581058179,-460.0,0.00020053,2]
[375185659,1753581058189,-466.25805262,0.00020053,2]
[375185661,1753581058198,-465.15033572,0.00020053,2]
[375185662,1753581058207,-465.20012702,0.00020053,2]
[375185663,1753581058217,-460.0,0.00020053,2]
[375185664,1753581058227,-466.27081385,0.00020053,2]
[375185665,1753581058236,-460.0,0.00020053,2]
[375185666,1753581058251,-460.0,0.00020053,2]
[375185667,1753581058261,-460.0,0.00020053,2]
[375185668,1753581058270,-460.0,0.00020053,2]
[375185669,1753581058280,-460.0,0.00020053,2]
[375185670,1753581058290,-462.40444682,0.00020053,2]
[375185671,1753581058299,-428.6569312,0.00020053,2]
[375185672,1753581058308,-460.0,0.00020053,2]
[375185674,1753581058317,-460.0,0.00020053,2]
[375185675,1753581058327,-4125.16739422,0.00020053,2]
[375185676,1753581058337,-461.81272494,0.00020053,2]
[375185678,1753581058346,-461.81199264,0.00020053,2]
[375185680,1753581058355,-460.0,0.00020053,2]
[375185682,1753581058365,-460.0,0.00020053,2]
[375185684,1753581058373,-475.16822082,0.00020053,2]
[375185686,1753581058383,-462.15838764,0.00020053,2]
[375185688,1753581058392,-460.0,0.00020053,2]
[375185690,1753581058401,-463.56108142,0.00020053,2]
[375185692,1753581058410,-462.13033544,0.00020053,2]
[375185694,1753581058425,-154.250531,0.00020053,2]
[375185696,1753581058434,-462.72131909,0.00020053,2]
[375185698,1753581058444,-152.068139,0.00020053,2]
[375185700,1753581058453,-151.0,0.00020053,2]
[375185701,1753581058462,-192.130624,0.00020053,2]
[375185704,1753581058472,-460.0,0.00020053,2]
[375185705,1753581058482,-460.0,0.00020053,2]
[375185707,1753581058491,-460.0,0.00020053,2]
[375185709,1753581058502,-463.37683266,0.00020053,2]
[375185711,1753581058512,-463.12933023,0.00020053,2]
[375185713,1753581058521,-460.0,0.00020053,2]
[375185715,1753581058531,-461.61028934,0.00020053,2]
[375185717,1753581058541,-460.0,0.00020053,2]
[375185720,1753581058552,-460.0,0.00020053,2]
[375185722,1753581058562,-460.0,0.00020054,2]
[375185723,1753581058571,-160.73711183,0.00020054,2]
[375185735,1753581058672,-460.0,0.00020054,2]
[375185737,1753581058683,-460.0,0.00020054,2]
[375185739,1753581058693,-169.89901445,0.00020054,2]
[375185741,1753581058703,-460.0,0.00020054,2]
[375185743,1753581058713,-466.48220517,0.00020054,2]
[375185745,1753581058723,-460.0,0.00020054,2]
[375185747,1753581058732,-460.0,0.00020054,2]
[375185749,1753581058742,-466.50994166,0.00020054,2]
[375185751,1753581058751,-460.0,0.00020054,2]
[375185753,1753581058761,-467.12130378,0.00020054,2]
[375185755,1753581058771,-227.86385619,0.00020054,2]
[375185757,1753581058780,-460.0,0.00020054,2]
[375185759,1753581058790,-460.0,0.00020054,2]
[375185761,1753581058799,-3030.31,0.00020054,2]
[375185763,1753581058809,-465.64178015,0.00020054,2]
[375185765,1753581058818,-1017.69,0.00020054,2]
[375185767,1753581058827,-460.0,0.00020054,2]
[375185769,1753581058837,-1075.9,0.00020054,2]
[375185771,1753581058846,-460.0,0.00020054,2]
[375185773,1753581058856,-460.0,0.00020054,2]
[375185775,1753581058865,-1162.34,0.00020056,2]
[375185777,1753581058874,-471.527324,0.00020056,2]
[375185779,1753581058883,-460.0,0.00020056,2]
[375185781,1753581058893,-461.98804429,0.00020056,2]
[375185783,1753581058902,-1676.65,0.00020056,2]
[375185785,1753581058912,-1307.85,0.00020056,2]
[375185787,1753581058921,-460.0,0.00020056,2]
[375185789,1753581058930,-500.0,0.00020064,2]
[375185791,1753581058940,-4064.15,0.00020064,2]
[375185793,1753581058949,-460.0,0.00020065,2]
[375185795,1753581058958,-5819.64290364,0.00020107,2]
[375185797,1753581058967,-1000.0,0.00020121,2]
[375185798,1753581058976,-1000.0,0.00020121,2]
[375185800,1753581058985,-1000.0,0.00020121,2]
[375185802,1753581058995,-1000.0,0.00020121,2]
[375185804,1753581059004,-1000.0,0.00020121,2]
[375185806,1753581059013,-501.41280616,0.00020121,2]
[375185808,1753581059022,-1000.0,0.00020121,2]
[375185810,1753581059031,-909.95777725,0.00020168,2]
[375185812,1753581059041,-202.431278,0.00020187,2]
[375185814,1753581059050,-5819.64290364,0.00020314,3]
[375185816,1753581059059,-501.6689213,0.00020321,2]
[375185818,1753581059069,-501.55042914,0.00020321,2]
[375185820,1753581059078,-1000.0,0.00020321,2]
[375185822,1753581059087,-606.18652128,0.00020321,2]
[375185824,1753581059096,-1003.74830139,0.00020321,2]
[375185826,1753581059107,-501.7841692,0.00020321,2]
[375185828,1753581059116,-154.791018,0.00020321,2]
[375185830,1753581059125,-460.0,0.00020324,2]
[375185832,1753581059135,-463.07802104,0.00020324,2]
[375185834,1753581059145,-466.21331076,0.00020324,2]
[375185836,1753581059154,-460.0,0.00020324,2]
[375185838,1753581059163,-460.0,0.00020324,2]
[375185840,1753581059173,-463.12637883,0.00020324,2]
[375185842,1753581059182,-460.0,0.00020324,2]
[375185844,1753581059191,-465.52654159,0.00020324,2]
[375185846,1753581059200,-450.56539255,0.00020324,2]
[375185848,1753581059210,-465.24789958,0.00020324,2]
[375185850,1753581059219,-463.34491594,0.00020324,2]
[375185852,1753581059228,-467.88677979,0.00020324,2]
[375185854,1753581059237,-457.26049218,0.00020324,2]
[375185856,1753581059247,-460.0,0.00020324,2]
[375185858,1753581059256,-171.78198174,0.00020324,2]
[375185860,1753581059265,-460.0,0.00020324,2]
[375185862,1753581059274,-460.0,0.00020324,2]
[375185864,1753581059284,-511.07024866,0.00020324,2]
[375185866,1753581059293,-460.0,0.00020324,2]
[375185868,1753581059302,-460.0,0.00020324,2]
[375185870,1753581059312,-460.0,0.00020324,2]
[375185872,1753581059321,-460.0,0.00020324,2]
[375185874,1753581059330,-460.0,0.00020324,2]
[375185876,1753581059339,-460.0,0.00020324,2]
[375185878,1753581059349,-460.0,0.00020324,2]
[375185880,1753581059358,-192.46889105,0.00020324,2]
[375185882,1753581059368,-462.88451609,0.00020324,2]
[375185884,1753581059377,-460.0,0.00020324,2]
[375185886,1753581059386,-465.89891192,0.00020324,2]
[375185888,1753581059396,-463.1930634,0.00020324,2]
[375185890,1753581059405,-460.0,0.00020324,2]
[375185892,1753581059416,-460.0,0.00020324,2]
[375185894,1753581059427,-460.0,0.00020324,2]
[375185896,1753581059436,-460.0,0.00020324,2]
[375185898,1753581059445,-460.0,0.00020324,2]
[375185900,1753581059455,-460.0,0.00020324,2]
[375185901,1753581059466,-460.0,0.00020324,2]
[375185903,1753581059475,-460.0,0.00020324,2]
[375185905,1753581059485,-470.81920337,0.00020324,2]
[375185907,1753581059495,-486.57,0.00020324,2]
[375185909,1753581059504,-460.0,0.00020324,2]
[375185911,1753581059514,-460.0,0.00020324,2]
[375185913,1753581059523,-460.0,0.00020324,2]
[375185915,1753581059533,-460.0,0.00020324,2]
[375185917,1753581059542,-460.0,0.00020324,2]
[375185919,1753581059551,-465.82977782,0.00020324,2]
[375185921,1753581059561,-460.0,0.00020324,2]
[375185924,1753581059571,-460.0,0.00020324,2]
[375185925,1753581059580,-460.0,0.00020324,2]
[375185927,1753581059589,-462.47085643,0.00020324,2]
[375185929,1753581059599,-462.25536916,0.00020324,2]
[375185931,1753581059609,-465.88262729,0.00020324,2]
[375185933,1753581059619,-460.0,0.00020324,2]
[375185935,1753581059628,-460.0,0.00020324,2]
[375185937,1753581059637,-460.0,0.00020324,2]
[375185939,1753581059647,-460.0,0.00020324,2]
[375185941,1753581059656,-463.5,0.00020324,2]
[375185943,1753581059665,-460.0,0.00020324,2]
[375185945,1753581059674,-460.0,0.00020324,2]
[375185947,1753581059684,-460.0,0.00020324,2]
[375185949,1753581059693,-392.56356198,0.00020324,2]
[375185951,1753581059702,-460.0,0.00020324,2]
[375185953,1753581059711,-460.0,0.00020324,2]
[375185955,1753581059721,-462.59813265,0.00020324,2]
[375185957,1753581059730,-460.0,0.00020324,2]
[375185959,1753581059739,-190.384102,0.00020324,2]
[375185961,1753581059748,-460.0,0.00020324,2]
[375185963,1753581059758,-461.96299637,0.00020324,2]
[375185965,1753581059767,-460.0,0.00020324,2]
[375185967,1753581059777,-460.0,0.00020324,2]
[375185969,1753581059786,-444.30448313,0.00020324,2]
[375185971,1753581059795,-467.25472251,0.00020324,2]
[375185973,1753581059804,-460.0,0.00020324,2]
[375185975,1753581059814,-460.0,0.00020324,2]
[375185977,1753581059823,-460.0,0.00020324,2]
[375185978,1753581059833,-460.0,0.00020324,2]
[375185980,1753581059842,-261.85952582,0.00020324,2]
[375185982,1753581059851,-460.0,0.00020324,2]
[375185984,1753581059864,-462.03831708,0.00020324,2]
[375185986,1753581059873,-460.0,0.00020324,2]
[375185988,1753581059883,-535.18,0.00020324,2]
[375185990,1753581059892,-512.88,0.00020324,2]
[375185992,1753581059902,-460.0,0.00020324,2]
[375185994,1753581059911,-151.0,0.00020324,2]
[375185996,1753581059921,-151.0,0.00020324,2]
[375185998,1753581059931,-460.0,0.00020324,2]
[375186000,1753581059940,-460.0,0.00020324,2]
[375186002,1753581059949,-460.0,0.00020324,2]
[375186004,1753581059959,-460.0,0.00020324,2]
[375186006,1753581059969,-464.76910678,0.00020324,2]
[375186008,1753581059978,-460.0,0.00020324,2]
[375186010,1753581059988,-152.995217,0.00020324,2]
[375186012,1753581059997,-460.0,0.00020324,2]
[375186014,1753581060005,-460.0,0.00020324,2]
[375186016,1753581060014,-460.0,0.00020324,2]
[375186018,1753581060024,-460.0,0.00020324,2]
[375186020,1753581060034,-1072.02,0.00020324,2]
[375186022,1753581060043,-460.0,0.00020324,2]
[375186024,1753581060053,-460.0,0.00020324,2]
[375186026,1753581060063,-460.0,0.00020324,2]
[375186028,1753581060073,-460.0,0.00020324,2]
[375186030,1753581060083,-460.0,0.00020324,2]
[375186032,1753581060092,-462.1966062,0.00020324,2]
[375186034,1753581060102,-460.0,0.00020324,2]
[375186036,1753581060112,-460.0,0.00020324,2]
[375186038,1753581060122,-460.0,0.00020324,2]
[375186040,1753581060131,-2025.96,0.00020324,2]
[375186042,1753581060141,-460.0,0.00020324,2]
[375186044,1753581060151,-460.0,0.00020324,2]
[375186046,1753581060163,-460.0,0.00020324,2]
[375186049,1753581060173,-460.0,0.00020324,2]
[375186051,1753581060183,-1006.77,0.00020324,2]
[375186053,1753581060193,-460.0,0.00020324,2]
[375186055,1753581060203,-460.0,0.00020324,2]
[375186057,1753581060212,-460.0,0.00020324,2]
[375186059,1753581060222,-460.0,0.00020324,2]
[375186061,1753581060231,-460.0,0.00020324,2]
[375186063,1753581060241,-151.0,0.00020324,2]
[375186065,1753581060251,-460.0,0.00020324,2]
[375186067,1753581060260,-460.0,0.00020324,2]
[375186069,1753581060270,-460.0,0.00020324,2]
[375186071,1753581060279,-674.58,0.00020324,2]
[375186073,1753581060289,-756.57,0.00020324,2]
[375186075,1753581060298,-460.0,0.00020324,2]
[375186077,1753581060308,-460.0,0.00020324,2]
[375186079,1753581060317,-460.0,0.00020324,2]
[375186081,1753581060327,-460.0,0.00020324,2]
[375186083,1753581060337,-471.46,0.00020324,2]
[375186085,1753581060346,-460.0,0.00020324,2]
[375186087,1753581060356,-460.0,0.00020324,2]
[375186089,1753581060365,-460.0,0.00020324,2]
[375186091,1753581060375,-1620.18,0.00020324,2]
[375186093,1753581060384,-460.0,0.00020324,2]
[375186095,1753581060395,-460.0,0.00020324,2]
[375186097,1753581060404,-460.0,0.00020324,2]
[375186099,1753581060414,-439.77191961,0.00020324,2]
[375186101,1753581060427,-460.0,0.00020324,2]
[375186102,1753581060526,-570.18349278,0.00020324,2]
[375186103,1753581060537,-464.50449463,0.00020324,2]
[375186104,1753581060547,-460.0,0.00020324,2]
[375186105,1753581060556,-460.0,0.00020324,2]
[375186106,1753581060569,-460.0,0.00020324,2]
[375186107,1753581060579,-1840.08,0.00020324,2]
[375186108,1753581060589,-460.0,0.00020324,2]
[375186109,1753581060599,-384.20676947,0.00020324,2]
[375186110,1753581060610,-460.0,0.00020324,2]
[375186111,1753581060620,-460.0,0.00020324,2]
[375186112,1753581060630,-460.0,0.00020324,2]
[375186113,1753581060640,-460.0,0.00020324,2]
[375186114,1753581060649,-460.0,0.00020324,2]
[375186115,1753581060659,-460.0,0.00020324,2]
[375186116,1753581060669,-460.0,0.00020324,2]
[375186117,1753581060679,-460.0,0.00020324,2]
[375186118,1753581060689,-460.0,0.00020324,2]
[375186119,1753581060699,-1601.61,0.00020324,2]
[375186120,1753581060709,-420.27098793,0.00020324,2]
[375186121,1753581060718,-460.0,0.00020324,2]
[375186122,1753581060728,-460.0,0.00020324,2]
[375186123,1753581060739,-460.0,0.00020324,2]
[375186124,1753581060750,-460.0,0.00020324,2]
[375186125,1753581060762,-460.0,0.00020324,2]
[375186126,1753581060772,-460.0,0.00020324,2]
[375186127,1753581060783,-460.0,0.00020324,2]
[375186128,1753581060793,-460.0,0.00020324,2]
[375186129,1753581060803,-663.29,0.00020324,2]
[375186130,1753581060813,-460.0,0.00020324,2]
[375186131,1753581060823,-522.23,0.00020324,2]
[375186132,1753581060832,-460.0,0.00020324,2]
[375186133,1753581060842,-1432.36,0.00020324,2]
[375186134,1753581060851,-460.0,0.00020324,2]
[375186135,1753581060861,-463.97961929,0.00020324,2]
[375186137,1753581060871,-460.0,0.00020324,2]
[375186139,1753581060880,-460.0,0.00020324,2]
[375186141,1753581060890,-460.0,0.00020324,2]
[375186143,1753581060900,-460.0,0.00020324,2]
[375186145,1753581060910,-462.91551724,0.00020324,2]
[375186147,1753581060920,-460.0,0.00020324,2]
[375186149,1753581060930,-463.37410415,0.00020324,2]
[375186151,1753581060940,-5218.69,0.00020324,2]
[375186153,1753581060951,-5218.69,0.00020324,2]
[375186155,1753581060960,-460.0,0.00020324,2]
[375186157,1753581060970,-663.2,0.00020324,2]
[375186159,1753581060980,-460.0,0.00020324,2]
[375186161,1753581060990,-460.0,0.00020324,2]
[375186163,1753581061000,-460.0,0.00020324,2]
[375186165,1753581061011,-460.0,0.00020324,2]
[375186167,1753581061020,-465.96212692,0.00020324,2]
[375186169,1753581061029,-460.0,0.00020324,2]
[375186171,1753581061039,-507.63,0.00020324,2]